[Event "*** Titled Tuesday Blitz AM"]
[Site "Chess.com"]
[Date "2020.01.07"]
[Round "8"]
[White "Fh2411"]
[Black "LLRChess"]
[Result "1-0"]
[WhiteElo "2506"]
[BlackElo "2322"]
[TimeControl "180+2"]
[EndTime "10:51:02 PST"]
[Termination "Fh2411 won on time"]

1. d4 {[%clk 0:03:00.1]} 1... Nf6 {[%clk 0:03:00.1]} 2. Nf3 {[%clk 0:03:01.3]}
2... g6 {[%clk 0:02:59.4]} 3. c4 {[%clk 0:03:00.1]} 3... Bg7 {[%clk 0:03:00.8]}
4. Nc3 {[%clk 0:03:01.5]} 4... d5 {[%clk 0:03:02.3]} 5. e3 {[%clk 0:02:44.3]}
5... O-O {[%clk 0:03:01.9]} 6. cxd5 {[%clk 0:02:26.6]} 6... Nxd5 {[%clk
0:03:02]} 7. Bc4 {[%clk 0:02:28.2]} 7... Nb6 {[%clk 0:02:53.3]} 8. Bb3 {[%clk
0:02:29.1]} 8... N8d7 {[%clk 0:02:42.6]} 9. O-O {[%clk 0:02:29.3]} 9... c5
{[%clk 0:02:43.3]} 10. Qe2 {[%clk 0:02:22]} 10... cxd4 {[%clk 0:02:42.6]} 11.
Nxd4 {[%clk 0:02:22.9]} 11... Nc5 {[%clk 0:02:42.6]} 12. Rd1 {[%clk 0:02:22.5]}
12... Bd7 {[%clk 0:02:35.6]} 13. e4 {[%clk 0:02:14.4]} 13... e5 {[%clk
0:02:19.6]} 14. Ndb5 {[%clk 0:02:13.5]} 14... Nxb3 {[%clk 0:02:17.8]} 15. axb3
{[%clk 0:02:14]} 15... Qb8 {[%clk 0:02:10.4]} 16. Be3 {[%clk 0:02:11.2]} 16...
Bxb5 {[%clk 0:01:51.2]} 17. Qxb5 {[%clk 0:02:02.7]} 17... Nc8 {[%clk 0:01:36.5]}
18. Bc5 {[%clk 0:01:53.3]} 18... a6 {[%clk 0:01:36]} 19. Qd7 {[%clk 0:01:50.8]}
19... Na7 {[%clk 0:01:23.9]} 20. Bxf8 {[%clk 0:01:49.1]} 20... Bxf8 {[%clk
0:01:17.3]} 21. Nd5 {[%clk 0:01:49.4]} 21... Nc6 {[%clk 0:01:08.2]} 22. Nb6
{[%clk 0:01:29.9]} 22... Ra7 {[%clk 0:01:07.2]} 23. Rac1 {[%clk 0:01:28.4]}
23... Bb4 {[%clk 0:00:56.4]} 24. Qc8+ {[%clk 0:00:59.6]} 24... Qxc8 {[%clk
0:00:55.7]} 25. Nxc8 {[%clk 0:01:01.5]} 25... Ra8 {[%clk 0:00:56]} 26. Nb6
{[%clk 0:01:03.1]} 26... Rb8 {[%clk 0:00:42.7]} 27. Rd7 {[%clk 0:00:58.7]} 27...
Ba5 {[%clk 0:00:32.9]} 28. Nc4 {[%clk 0:00:40.5]} 28... Bd8 {[%clk 0:00:13.9]}
29. Rcd1 {[%clk 0:00:31.2]} 29... Be7 {[%clk 0:00:10.3]} 30. Nxe5 {[%clk
0:00:28.2]} 30... Bf6 {[%clk 0:00:06.1]} 31. Nxf7 {[%clk 0:00:21.5]} 31... Rf8
{[%clk 0:00:02.1]} 32. Nh6+ {[%clk 0:00:19.6]} 32... Kh8 {[%clk 0:00:02.7]} 33.
Rf7 {[%clk 0:00:19.7]} 33... Bg7 {[%clk 0:00:02.5]} 34. Rxf8+ {[%clk 0:00:17.8]}
34... Bxf8 {[%clk 0:00:03.8]} 35. Nf7+ {[%clk 0:00:18.3]} 35... Kg8 {[%clk
0:00:04.4]} 36. Nd8 {[%clk 0:00:20]} 1-0

[Event "*** Titled Tuesday Blitz AM"]
[Site "Chess.com"]
[Date "2020.01.07"]
[Round "8"]
[White "Sanan_Sjugirov"]
[Black "David_Paravyan"]
[Result "0-1"]
[WhiteElo "2945"]
[BlackElo "2880"]
[TimeControl "180+2"]
[EndTime "10:51:04 PST"]
[Termination "David_Paravyan won by resignation"]

1. d4 {[%clk 0:03:01.9]} 1... Nf6 {[%clk 0:03:01.1]} 2. c4 {[%clk 0:03:02.3]}
2... e6 {[%clk 0:03:02.4]} 3. Nf3 {[%clk 0:03:01.1]} 3... d5 {[%clk 0:03:03.8]}
4. Nc3 {[%clk 0:02:58.1]} 4... Bb4 {[%clk 0:03:05.3]} 5. Qb3 {[%clk 0:02:52.7]}
5... a5 {[%clk 0:03:03]} 6. a3 {[%clk 0:02:52.1]} 6... a4 {[%clk 0:02:58.9]} 7.
Qc2 {[%clk 0:02:53]} 7... Bxc3+ {[%clk 0:02:56.9]} 8. bxc3 {[%clk 0:02:54.9]}
8... dxc4 {[%clk 0:02:39.9]} 9. Rb1 {[%clk 0:02:55.8]} 9... Qd5 {[%clk
0:02:34.3]} 10. Ng5 {[%clk 0:02:31.2]} 10... h6 {[%clk 0:02:25.2]} 11. Nh3
{[%clk 0:02:13.2]} 11... e5 {[%clk 0:02:11.2]} 12. dxe5 {[%clk 0:02:12.6]} 12...
Qxe5 {[%clk 0:02:11.8]} 13. Bf4 {[%clk 0:02:06.1]} 13... Qc5 {[%clk 0:02:01.2]}
14. e4 {[%clk 0:02:01]} 14... O-O {[%clk 0:01:55.5]} 15. Rb4 {[%clk 0:01:53.4]}
15... b5 {[%clk 0:01:51.1]} 16. Be3 {[%clk 0:01:53.7]} 16... Qe5 {[%clk
0:01:29.5]} 17. Bd4 {[%clk 0:01:37.3]} 17... Qxe4+ {[%clk 0:01:30.4]} 18. Qxe4
{[%clk 0:01:38.3]} 18... Nxe4 {[%clk 0:01:32.3]} 19. Rxb5 {[%clk 0:01:39.8]}
19... Re8 {[%clk 0:01:32.4]} 20. Re5 {[%clk 0:00:53.9]} 20... Rxe5 {[%clk
0:01:33]} 21. Bxe5 {[%clk 0:00:55.8]} 21... Nc6 {[%clk 0:01:33.4]} 22. Bxc7
{[%clk 0:00:55.7]} 22... Bxh3 {[%clk 0:01:20]} 23. gxh3 {[%clk 0:00:57]} 23...
Re8 {[%clk 0:01:21.5]} 24. Rg1 {[%clk 0:00:47.4]} 24... Nxc3+ {[%clk 0:00:37.6]}
25. Kd2 {[%clk 0:00:47.4]} 25... Nb5 {[%clk 0:00:35.6]} 26. Bf4 {[%clk
0:00:39.9]} 26... c3+ {[%clk 0:00:34.8]} 27. Kd3 {[%clk 0:00:34.3]} 27... Re1
{[%clk 0:00:33.2]} 28. Bxh6 {[%clk 0:00:26.8]} 28... g6 {[%clk 0:00:25.7]} 29.
Rh1 {[%clk 0:00:13.6]} 29... Ne5+ {[%clk 0:00:09.6]} 30. Kc2 {[%clk 0:00:14.2]}
30... Nxa3+ {[%clk 0:00:04.1]} 31. Kxc3 {[%clk 0:00:15]} 31... Nb5+ {[%clk
0:00:05.6]} 32. Kc2 {[%clk 0:00:09.6]} 32... Nd4+ {[%clk 0:00:03.9]} 33. Kb2
{[%clk 0:00:10]} 33... Nd3+ {[%clk 0:00:05.4]} 34. Kc3 {[%clk 0:00:07.9]} 34...
Nxf2 {[%clk 0:00:06.9]} 35. Kd2 {[%clk 0:00:04.2]} 35... Nf3+ {[%clk 0:00:07.7]}
0-1

[Event "*** Titled Tuesday Blitz AM"]
[Site "Chess.com"]
[Date "2020.01.07"]
[Round "8"]
[White "platy3"]
[Black "Leonid_Starozhilov"]
[Result "1-0"]
[WhiteElo "2885"]
[BlackElo "2698"]
[TimeControl "180+2"]
[EndTime "10:51:16 PST"]
[Termination "platy3 won by resignation"]

1. e4 {[%clk 0:03:01.9]} 1... d6 {[%clk 0:02:57.4]} 2. d4 {[%clk 0:03:01.5]}
2... g6 {[%clk 0:02:58.4]} 3. f3 {[%clk 0:03:02.9]} 3... Bg7 {[%clk 0:02:59.5]}
4. c4 {[%clk 0:03:04.3]} 4... Nf6 {[%clk 0:03:00.2]} 5. Nc3 {[%clk 0:03:04.8]}
5... Nc6 {[%clk 0:03:00.4]} 6. Be3 {[%clk 0:03:02.8]} 6... a6 {[%clk 0:03:00]}
7. Qd2 {[%clk 0:03:00.9]} 7... O-O {[%clk 0:02:57.7]} 8. h4 {[%clk 0:02:45.6]}
8... h5 {[%clk 0:02:56]} 9. Nge2 {[%clk 0:02:41.1]} 9... Na5 {[%clk 0:02:54]}
10. Nc1 {[%clk 0:02:38.3]} 10... b6 {[%clk 0:02:42.3]} 11. Bd3 {[%clk
0:02:34.7]} 11... c5 {[%clk 0:02:40.6]} 12. d5 {[%clk 0:02:33.7]} 12... Rb8
{[%clk 0:02:32.8]} 13. Rb1 {[%clk 0:02:29.9]} 13... e6 {[%clk 0:02:13.8]} 14. b3
{[%clk 0:02:27.3]} 14... exd5 {[%clk 0:02:14]} 15. cxd5 {[%clk 0:02:28]} 15...
b5 {[%clk 0:02:13.8]} 16. Bf4 {[%clk 0:02:21.3]} 16... Re8 {[%clk 0:02:08.6]}
17. N1e2 {[%clk 0:02:20.3]} 17... b4 {[%clk 0:01:24.8]} 18. Nd1 {[%clk
0:02:12.4]} 18... Qc7 {[%clk 0:01:20]} 19. Ne3 {[%clk 0:02:08]} 19... Nd7 {[%clk
0:01:20]} 20. Rc1 {[%clk 0:02:04.9]} 20... Ne5 {[%clk 0:01:18]} 21. O-O {[%clk
0:02:03.2]} 21... Bd7 {[%clk 0:01:15.8]} 22. Rfd1 {[%clk 0:01:40.1]} 22... Qd8
{[%clk 0:01:09.6]} 23. Bg5 {[%clk 0:01:33.2]} 23... Bf6 {[%clk 0:01:06.3]} 24.
Bxf6 {[%clk 0:01:28.6]} 24... Qxf6 {[%clk 0:01:07]} 25. Qe1 {[%clk 0:01:30.5]}
25... Bb5 {[%clk 0:00:40.9]} 26. Bxb5 {[%clk 0:01:29.7]} 26... axb5 {[%clk
0:00:41.9]} 27. Qg3 {[%clk 0:01:29.8]} 27... c4 {[%clk 0:00:38.8]} 28. Qg5
{[%clk 0:01:15.7]} 28... Qxg5 {[%clk 0:00:36.9]} 29. hxg5 {[%clk 0:01:17.6]}
29... Rec8 {[%clk 0:00:32]} 30. Nd4 {[%clk 0:01:10.4]} 30... c3 {[%clk 0:00:27]}
31. Nec2 {[%clk 0:01:08.9]} 31... f6 {[%clk 0:00:15.8]} 32. gxf6 {[%clk
0:01:03.5]} 32... Kf7 {[%clk 0:00:16.9]} 33. Nxb4 {[%clk 0:01:04.8]} 33... Kxf6
{[%clk 0:00:18.4]} 34. Ne2 {[%clk 0:01:03.8]} 34... g5 {[%clk 0:00:15.1]} 35.
Rxc3 {[%clk 0:01:04.1]} 35... Nb7 {[%clk 0:00:13.8]} 36. Rdc1 {[%clk 0:00:53.4]}
36... Nc5 {[%clk 0:00:14.5]} 37. Nd4 {[%clk 0:00:49.8]} 37... h4 {[%clk
0:00:11.8]} 38. Nf5 {[%clk 0:00:50]} 38... Rd8 {[%clk 0:00:08.4]} 39. Nc6 {[%clk
0:00:49.7]} 39... Nxc6 {[%clk 0:00:08.1]} 40. dxc6 {[%clk 0:00:51.6]} 40... Rbc8
{[%clk 0:00:08.8]} 41. b4 {[%clk 0:00:50.8]} 41... Ne6 {[%clk 0:00:08.4]} 42.
Rd3 {[%clk 0:00:49.8]} 42... Nf4 {[%clk 0:00:09.8]} 43. Rd2 {[%clk 0:00:51.4]}
43... d5 {[%clk 0:00:09.2]} 44. Kf1 {[%clk 0:00:43.9]} 44... dxe4 {[%clk
0:00:07.9]} 45. Rxd8 {[%clk 0:00:45.4]} 45... Rxd8 {[%clk 0:00:09.2]} 46. c7
{[%clk 0:00:40.3]} 46... Rc8 {[%clk 0:00:04.8]} 47. Nd6 {[%clk 0:00:41.5]} 47...
Rxc7 {[%clk 0:00:05.9]} 48. Rxc7 {[%clk 0:00:41.6]} 48... e3 {[%clk 0:00:07.4]}
49. Rc2 {[%clk 0:00:38.6]} 49... Ke5 {[%clk 0:00:08.1]} 50. Nxb5 {[%clk
0:00:39.6]} 1-0

[Event "*** Titled Tuesday Blitz AM"]
[Site "Chess.com"]
[Date "2020.01.07"]
[Round "8"]
[White "GMBenjaminBok"]
[Black "Alexander_Moskalenko"]
[Result "0-1"]
[WhiteElo "2873"]
[BlackElo "2820"]
[TimeControl "180+2"]
[EndTime "10:51:29 PST"]
[Termination "Alexander_Moskalenko won by resignation"]

1. Nf3 {[%clk 0:03:01.9]} 1... d5 {[%clk 0:03:00.5]} 2. g3 {[%clk 0:03:00.9]}
2... Nf6 {[%clk 0:03:00.5]} 3. Bg2 {[%clk 0:03:01.8]} 3... c6 {[%clk 0:03:01.9]}
4. c4 {[%clk 0:03:02.9]} 4... Bg4 {[%clk 0:03:01.8]} 5. Ne5 {[%clk 0:03:02.8]}
5... Be6 {[%clk 0:03:01.7]} 6. cxd5 {[%clk 0:03:03.7]} 6... Bxd5 {[%clk
0:03:03]} 7. Nf3 {[%clk 0:03:05.3]} 7... c5 {[%clk 0:03:04.5]} 8. Nc3 {[%clk
0:03:05.9]} 8... Bc6 {[%clk 0:03:06.1]} 9. O-O {[%clk 0:03:07]} 9... e6 {[%clk
0:03:07.6]} 10. Qc2 {[%clk 0:03:07.7]} 10... Nbd7 {[%clk 0:03:08.1]} 11. Rd1
{[%clk 0:03:08.4]} 11... Rc8 {[%clk 0:03:06.9]} 12. e4 {[%clk 0:03:05.3]} 12...
e5 {[%clk 0:02:26.3]} 13. a4 {[%clk 0:03:01.6]} 13... Be7 {[%clk 0:02:27.3]} 14.
d3 {[%clk 0:03:02.4]} 14... O-O {[%clk 0:02:27.8]} 15. Nd2 {[%clk 0:03:03]}
15... Ne8 {[%clk 0:02:18.8]} 16. Nc4 {[%clk 0:03:01.3]} 16... Nc7 {[%clk
0:02:20.3]} 17. Bh3 {[%clk 0:03:00.1]} 17... Ne6 {[%clk 0:02:14.3]} 18. Bxe6
{[%clk 0:02:59.6]} 18... fxe6 {[%clk 0:02:16.2]} 19. b3 {[%clk 0:02:38.3]} 19...
b6 {[%clk 0:02:16.9]} 20. Bb2 {[%clk 0:02:37.8]} 20... Ba8 {[%clk 0:02:09.5]}
21. Kg2 {[%clk 0:02:29.4]} 21... Qc7 {[%clk 0:02:08.7]} 22. Qe2 {[%clk
0:02:27.2]} 22... Rf7 {[%clk 0:01:58.7]} 23. Qg4 {[%clk 0:02:20.2]} 23... Rf6
{[%clk 0:01:56.6]} 24. Rd2 {[%clk 0:01:49.9]} 24... a6 {[%clk 0:01:56.5]} 25.
Rf1 {[%clk 0:01:43.9]} 25... Rcf8 {[%clk 0:01:57.5]} 26. Ne3 {[%clk 0:01:29.3]}
26... Bc6 {[%clk 0:01:59]} 27. Qe2 {[%clk 0:01:27.3]} 27... b5 {[%clk
0:01:53.7]} 28. axb5 {[%clk 0:01:27]} 28... axb5 {[%clk 0:01:55.6]} 29. Ng4
{[%clk 0:01:26.7]} 29... Rg6 {[%clk 0:01:45.8]} 30. h4 {[%clk 0:01:17.4]} 30...
Bxh4 {[%clk 0:01:39.7]} 31. Nd1 {[%clk 0:01:01.9]} 31... Bg5 {[%clk 0:01:37]}
32. Rc2 {[%clk 0:01:02.5]} 32... h5 {[%clk 0:01:30.4]} 33. Nh2 {[%clk
0:00:31.7]} 33... h4 {[%clk 0:01:31.5]} 34. Qh5 {[%clk 0:00:30.3]} 34... Rff6
{[%clk 0:01:16.4]} 35. Ng4 {[%clk 0:00:29.8]} 35... Kf7 {[%clk 0:01:17.3]} 36.
Nxf6 {[%clk 0:00:27.2]} 36... Nxf6 {[%clk 0:01:19.2]} 37. Qe2 {[%clk 0:00:18.9]}
37... hxg3 {[%clk 0:01:16.4]} 38. fxg3 {[%clk 0:00:13.3]} 38... Bf4 {[%clk
0:01:17.7]} 39. Rf3 {[%clk 0:00:13.8]} 39... Nh5 {[%clk 0:01:01.2]} 40. Kf2
{[%clk 0:00:10.6]} 40... Nxg3 {[%clk 0:01:02.4]} 41. Qe1 {[%clk 0:00:10.8]}
41... Qd6 {[%clk 0:00:39.4]} 42. Qc3 {[%clk 0:00:05.8]} 42... Nxe4+ {[%clk
0:00:33.2]} 43. dxe4 {[%clk 0:00:06.8]} 43... Bxe4 {[%clk 0:00:35.1]} 44. Rd2
{[%clk 0:00:05.4]} 44... Qe7 {[%clk 0:00:14.5]} 45. Qxe5 {[%clk 0:00:05.5]}
45... Qh4+ {[%clk 0:00:14.2]} 46. Kf1 {[%clk 0:00:03.7]} 46... Qh1+ {[%clk
0:00:14.9]} 47. Ke2 {[%clk 0:00:04.8]} 47... Qxf3+ {[%clk 0:00:16.4]} 0-1

[Event "*** Titled Tuesday Blitz AM"]
[Site "Chess.com"]
[Date "2020.01.07"]
[Round "8"]
[White "Msb2"]
[Black "crescentmoon2411"]
[Result "1-0"]
[WhiteElo "2893"]
[BlackElo "2937"]
[TimeControl "180+2"]
[EndTime "10:51:46 PST"]
[Termination "Msb2 won by resignation"]

1. d4 {[%clk 0:03:01.9]} 1... Nf6 {[%clk 0:03:00.6]} 2. c4 {[%clk 0:03:00.9]}
2... e6 {[%clk 0:02:59]} 3. Nc3 {[%clk 0:03:00.6]} 3... Bb4 {[%clk 0:02:57.3]}
4. e3 {[%clk 0:03:01.5]} 4... O-O {[%clk 0:02:56.8]} 5. Bd2 {[%clk 0:03:01]}
5... c5 {[%clk 0:02:52.1]} 6. a3 {[%clk 0:02:55]} 6... Bxc3 {[%clk 0:02:53]} 7.
Bxc3 {[%clk 0:02:56.9]} 7... Ne4 {[%clk 0:02:53]} 8. Ne2 {[%clk 0:02:56.1]} 8...
d5 {[%clk 0:02:39.7]} 9. dxc5 {[%clk 0:02:54.4]} 9... dxc4 {[%clk 0:02:35.7]}
10. Qd4 {[%clk 0:02:50.1]} 10... Qxd4 {[%clk 0:02:34]} 11. Bxd4 {[%clk
0:02:45.4]} 11... e5 {[%clk 0:02:18.9]} 12. Bxe5 {[%clk 0:02:31.6]} 12... Nxc5
{[%clk 0:02:19.8]} 13. Nf4 {[%clk 0:02:32.7]} 13... Re8 {[%clk 0:02:03.3]} 14.
Bd6 {[%clk 0:02:21.6]} 14... Nb3 {[%clk 0:02:03.2]} 15. Rd1 {[%clk 0:02:20.6]}
15... b5 {[%clk 0:02:01.9]} 16. Nd5 {[%clk 0:02:13]} 16... Na6 {[%clk
0:02:01.8]} 17. Ne7+ {[%clk 0:02:01.5]} 17... Kh8 {[%clk 0:02:02.3]} 18. Nxc8
{[%clk 0:02:01]} 18... Raxc8 {[%clk 0:02:03.1]} 19. Be2 {[%clk 0:02:01.3]} 19...
Nac5 {[%clk 0:02:02.7]} 20. O-O {[%clk 0:01:53.9]} 20... Na4 {[%clk 0:02:01.5]}
21. Rd5 {[%clk 0:01:21.5]} 21... a6 {[%clk 0:01:59.2]} 22. Be5 {[%clk
0:00:57.7]} 22... f6 {[%clk 0:01:54.3]} 23. Bc3 {[%clk 0:00:55.8]} 23... Nxc3
{[%clk 0:01:45.6]} 24. bxc3 {[%clk 0:00:57.7]} 24... Nc5 {[%clk 0:01:47]} 25.
Bg4 {[%clk 0:00:51.3]} 25... Rc7 {[%clk 0:01:47.2]} 26. Bf5 {[%clk 0:00:40.2]}
26... Na4 {[%clk 0:01:42.3]} 27. Rc1 {[%clk 0:00:38.7]} 27... g6 {[%clk
0:01:42.7]} 28. Bg4 {[%clk 0:00:25.3]} 28... Ree7 {[%clk 0:01:23.3]} 29. Bd1
{[%clk 0:00:24.7]} 29... Nc5 {[%clk 0:01:23.4]} 30. Bc2 {[%clk 0:00:25.2]} 30...
Red7 {[%clk 0:01:23.6]} 31. Rcd1 {[%clk 0:00:25.8]} 31... Kg7 {[%clk 0:01:15.7]}
32. Kf1 {[%clk 0:00:22.6]} 32... Kf7 {[%clk 0:01:13.8]} 33. Ke2 {[%clk
0:00:22.6]} 33... Ke6 {[%clk 0:01:07.3]} 34. e4 {[%clk 0:00:24]} 34... Rxd5
{[%clk 0:01:05.3]} 35. Rxd5 {[%clk 0:00:24.7]} 35... f5 {[%clk 0:01:01.3]} 36.
Ke3 {[%clk 0:00:23.5]} 36... fxe4 {[%clk 0:00:54.2]} 37. Bxe4 {[%clk 0:00:23.2]}
37... Nxe4 {[%clk 0:00:43.5]} 38. Kxe4 {[%clk 0:00:25.1]} 38... Rf7 {[%clk
0:00:44.2]} 39. Rd2 {[%clk 0:00:20.2]} 39... g5 {[%clk 0:00:40.6]} 40. f3 {[%clk
0:00:18.9]} 40... Rf5 {[%clk 0:00:27.8]} 41. Rd8 {[%clk 0:00:16.4]} 41... Re5+
{[%clk 0:00:28.5]} 42. Kd4 {[%clk 0:00:17.3]} 42... Rf5 {[%clk 0:00:26.2]} 43.
Ra8 {[%clk 0:00:18]} 43... Rd5+ {[%clk 0:00:26.5]} 44. Ke4 {[%clk 0:00:18.6]}
44... Rd6 {[%clk 0:00:20.8]} 45. g3 {[%clk 0:00:15.2]} 45... Kf6 {[%clk
0:00:19.2]} 46. f4 {[%clk 0:00:14.8]} 46... g4 {[%clk 0:00:18]} 47. f5 {[%clk
0:00:13.1]} 47... h5 {[%clk 0:00:15.1]} 48. Kf4 {[%clk 0:00:14.4]} 48... Rc6
{[%clk 0:00:12.4]} 49. Rh8 {[%clk 0:00:14.8]} 49... Rc5 {[%clk 0:00:09.2]} 50.
Rh6+ {[%clk 0:00:15.4]} 50... Kg7 {[%clk 0:00:09.9]} 51. Rxh5 {[%clk 0:00:15.7]}
51... a5 {[%clk 0:00:10.6]} 52. f6+ {[%clk 0:00:17.1]} 1-0

[Event "*** Titled Tuesday Blitz AM"]
[Site "Chess.com"]
[Date "2020.01.07"]
[Round "8"]
[White "arjwezhrtdrz"]
[Black "przemekpiotrowski"]
[Result "1/2-1/2"]
[WhiteElo "2281"]
[BlackElo "2388"]
[TimeControl "180+2"]
[EndTime "10:51:54 PST"]
[Termination "Game drawn by stalemate"]

1. e4 {[%clk 0:02:58.2]} 1... c5 {[%clk 0:03:00.8]} 2. c3 {[%clk 0:02:58.6]}
2... Nf6 {[%clk 0:03:00.9]} 3. e5 {[%clk 0:02:59.7]} 3... Nd5 {[%clk 0:03:02.5]}
4. Nf3 {[%clk 0:03:01.6]} 4... b6 {[%clk 0:03:03.5]} 5. d4 {[%clk 0:03:02.9]}
5... cxd4 {[%clk 0:03:05.4]} 6. cxd4 {[%clk 0:03:04]} 6... Bb7 {[%clk 0:03:07]}
7. Bc4 {[%clk 0:03:04.9]} 7... e6 {[%clk 0:03:06.4]} 8. O-O {[%clk 0:03:05.7]}
8... d6 {[%clk 0:03:07.6]} 9. Bxd5 {[%clk 0:03:06.5]} 9... Bxd5 {[%clk 0:03:08]}
10. Nc3 {[%clk 0:03:07.7]} 10... Bxf3 {[%clk 0:03:06.8]} 11. Qxf3 {[%clk
0:03:07.7]} 11... d5 {[%clk 0:03:08.2]} 12. Qg4 {[%clk 0:03:00.8]} 12... Nc6
{[%clk 0:03:01.4]} 13. Be3 {[%clk 0:03:00]} 13... h5 {[%clk 0:02:56.5]} 14. Qg3
{[%clk 0:02:59.7]} 14... h4 {[%clk 0:02:50.8]} 15. Qg4 {[%clk 0:03:00.4]} 15...
h3 {[%clk 0:02:51.7]} 16. g3 {[%clk 0:03:00.7]} 16... g6 {[%clk 0:02:49.4]} 17.
Rac1 {[%clk 0:02:59]} 17... Rc8 {[%clk 0:02:40.1]} 18. Ne2 {[%clk 0:02:59.1]}
18... Bh6 {[%clk 0:02:26.1]} 19. a3 {[%clk 0:02:56.5]} 19... Ne7 {[%clk
0:02:17.4]} 20. Qxh3 {[%clk 0:02:44.9]} 20... Rxc1 {[%clk 0:02:14.3]} 21. Rxc1
{[%clk 0:02:42.9]} 21... Nf5 {[%clk 0:02:14.4]} 22. Bxh6 {[%clk 0:02:31.3]}
22... Rxh6 {[%clk 0:02:12.7]} 23. Qg4 {[%clk 0:02:31.8]} 23... Qd7 {[%clk
0:02:05.9]} 24. h4 {[%clk 0:02:25.2]} 24... Qa4 {[%clk 0:01:57.1]} 25. Qf4
{[%clk 0:02:14.9]} 25... Qb5 {[%clk 0:01:33.2]} 26. Qd2 {[%clk 0:02:14.6]} 26...
g5 {[%clk 0:00:56.6]} 27. hxg5 {[%clk 0:02:15]} 27... Rg6 {[%clk 0:00:55.8]} 28.
Nf4 {[%clk 0:02:09.4]} 28... Rxg5 {[%clk 0:00:51.3]} 29. Nxe6 {[%clk 0:02:10.5]}
29... Rxg3+ {[%clk 0:00:37.6]} 30. fxg3 {[%clk 0:02:10.6]} 30... fxe6 {[%clk
0:00:39.3]} 31. Kf2 {[%clk 0:02:05.5]} 31... Kd7 {[%clk 0:00:36.2]} 32. g4
{[%clk 0:02:03.9]} 32... Ne7 {[%clk 0:00:35]} 33. Qc3 {[%clk 0:02:00.7]} 33...
Ke8 {[%clk 0:00:31.7]} 34. Ke3 {[%clk 0:01:47.5]} 34... a5 {[%clk 0:00:27]} 35.
g5 {[%clk 0:01:42.6]} 35... Kf7 {[%clk 0:00:22.5]} 36. g6+ {[%clk 0:01:38.3]}
36... Kxg6 {[%clk 0:00:21.3]} 37. Qd3+ {[%clk 0:01:36.2]} 37... Nf5+ {[%clk
0:00:20.5]} 38. Kd2 {[%clk 0:01:20]} 38... Qxb2+ {[%clk 0:00:21.2]} 39. Rc2
{[%clk 0:01:21.3]} 39... Qxd4 {[%clk 0:00:20.4]} 40. Qxd4 {[%clk 0:01:19]} 40...
Nxd4 {[%clk 0:00:22.3]} 41. Rb2 {[%clk 0:01:19.8]} 41... Nc6 {[%clk 0:00:22.6]}
42. Rxb6 {[%clk 0:01:18.5]} 42... Nxe5 {[%clk 0:00:23.8]} 43. Rxe6+ {[%clk
0:01:19.8]} 43... Kf5 {[%clk 0:00:25.3]} 44. Ra6 {[%clk 0:01:20.7]} 44... Ke4
{[%clk 0:00:26.5]} 45. Kc3 {[%clk 0:01:21.5]} 45... d4+ {[%clk 0:00:26.2]} 46.
Kb2 {[%clk 0:01:18.3]} 46... d3 {[%clk 0:00:26.1]} 47. Kc1 {[%clk 0:01:19.2]}
47... Nc4 {[%clk 0:00:26.4]} 48. a4 {[%clk 0:01:18.4]} 48... Kd4 {[%clk
0:00:19.6]} 49. Ra8 {[%clk 0:01:14.7]} 49... Kc3 {[%clk 0:00:15.5]} 50. Rc8
{[%clk 0:01:13]} 50... Kb3 {[%clk 0:00:15.8]} 51. Kd1 {[%clk 0:01:08.3]} 51...
Kb4 {[%clk 0:00:15.8]} 52. Rc7 {[%clk 0:01:07.8]} 52... Kb3 {[%clk 0:00:14.9]}
53. Rc6 {[%clk 0:01:06.6]} 53... Kb4 {[%clk 0:00:12.8]} 54. Rc8 {[%clk
0:01:07.6]} 54... Kb3 {[%clk 0:00:12.2]} 55. Kc1 {[%clk 0:01:08.7]} 55... Kc3
{[%clk 0:00:12.7]} 56. Kd1 {[%clk 0:01:06]} 56... d2 {[%clk 0:00:13.3]} 57.
Rxc4+ {[%clk 0:01:06.4]} 57... Kxc4 {[%clk 0:00:14.3]} 58. Kxd2 {[%clk
0:01:08.2]} 58... Kb3 {[%clk 0:00:16.2]} 59. Kc1 {[%clk 0:01:08.4]} 59... Kxa4
{[%clk 0:00:16.5]} 60. Kb1 {[%clk 0:01:09.6]} 60... Ka3 {[%clk 0:00:18.4]} 61.
Ka1 {[%clk 0:01:11.4]} 61... a4 {[%clk 0:00:20.3]} 62. Kb1 {[%clk 0:01:12.5]}
62... Kb3 {[%clk 0:00:22.2]} 63. Ka1 {[%clk 0:01:14.1]} 63... a3 {[%clk
0:00:24.1]} 64. Kb1 {[%clk 0:01:16]} 64... a2+ {[%clk 0:00:26]} 65. Ka1 {[%clk
0:01:17.9]} 65... Ka3 {[%clk 0:00:25.5]} 1/2-1/2